[Event "Late-Titled-Tuesday-Blitz-April-02-2024"]
[Site "Chess.com"]
[Date "2024.04.02"]
[Round "5"]
[White "rikchessmx"]
[Black "merinasian"]
[Result "1-0"]
[WhiteElo "2249"]
[BlackElo "2475"]
[TimeControl "180+1"]
[EndTime "14:53:25 PDT"]
[Termination "rikchessmx won on time"]

1. e4 {[%clk 0:03:00.9]} 1... d6 {[%clk 0:00:41.5]} 2. d4 {[%clk 0:00:31.8]}
2... g6 {[%clk 0:00:38]} 3. Nc3 {[%clk 0:00:31.9]} 3... Bg7 {[%clk 0:00:38.1]}
4. f3 {[%clk 0:00:32.8]} 4... e6 {[%clk 0:00:37.8]} 5. Be3 {[%clk 0:00:33.4]}
5... Ne7 {[%clk 0:00:38.2]} 6. Qd2 {[%clk 0:00:33.8]} 6... a6 {[%clk 0:00:38.7]}
7. h4 {[%clk 0:00:34.1]} 7... h6 {[%clk 0:00:37.7]} 8. O-O-O {[%clk 0:00:33.6]}
8... b5 {[%clk 0:00:37.4]} 9. Kb1 {[%clk 0:00:33.9]} 9... Bb7 {[%clk 0:00:37.7]}
10. Nh3 {[%clk 0:00:31.9]} 10... Nd7 {[%clk 0:00:38.1]} 11. Nf4 {[%clk
0:00:31.7]} 11... Nb6 {[%clk 0:00:37.8]} 12. b3 {[%clk 0:00:31.6]} 12... b4
{[%clk 0:00:34.6]} 13. Nce2 {[%clk 0:00:30.4]} 13... a5 {[%clk 0:00:35.2]} 14.
g4 {[%clk 0:00:29.7]} 14... Qb8 {[%clk 0:00:27.1]} 15. Nc1 {[%clk 0:00:25.1]}
15... Qa7 {[%clk 0:00:19.3]} 16. Bb5+ {[%clk 0:00:21.7]} 16... c6 {[%clk
0:00:18.7]} 17. Be2 {[%clk 0:00:20.8]} 17... Ba6 {[%clk 0:00:18.9]} 18. Nfd3
{[%clk 0:00:19.8]} 18... Bb5 {[%clk 0:00:15.7]} 19. f4 {[%clk 0:00:18.2]} 19...
a4 {[%clk 0:00:12.9]} 20. Qxb4 {[%clk 0:00:16.5]} 20... axb3 {[%clk 0:00:12.5]}
21. cxb3 {[%clk 0:00:16.3]} 21... Nec8 {[%clk 0:00:10.1]} 22. f5 {[%clk
0:00:15.4]} 22... gxf5 {[%clk 0:00:07.2]} 23. gxf5 {[%clk 0:00:14.6]} 23... Bf8
{[%clk 0:00:06.3]} 24. d5 {[%clk 0:00:14.3]} 24... exd5 {[%clk 0:00:05.5]} 25.
exd5 {[%clk 0:00:12.9]} 25... Bxd3+ {[%clk 0:00:05.4]} 26. Bxd3 {[%clk
0:00:10.2]} 26... c5 {[%clk 0:00:05.7]} 27. Qe4+ {[%clk 0:00:09.3]} 27... Kd8
{[%clk 0:00:05.5]} 28. f6 {[%clk 0:00:09.1]} 28... Rg8 {[%clk 0:00:04.9]} 29.
Rhe1 {[%clk 0:00:08.4]} 29... Kc7 {[%clk 0:00:03]} 30. Bb5 {[%clk 0:00:07.5]}
30... Rg3 {[%clk 0:00:01.7]} 31. Qf4 {[%clk 0:00:07.2]} 31... Rg2 {[%clk
0:00:01.3]} 32. Bxc5 {[%clk 0:00:05.9]} 32... Rxa2 {[%clk 0:00:01]} 33. Re7+
{[%clk 0:00:05]} 1-0

[Event "Late-Titled-Tuesday-Blitz-April-02-2024"]
[Site "Chess.com"]
[Date "2024.04.02"]
[Round "5"]
[White "RealPerangel"]
[Black "Iball95"]
[Result "0-1"]
[WhiteElo "2556"]
[BlackElo "2922"]
[TimeControl "180+1"]
[EndTime "14:53:26 PDT"]
[Termination "Iball95 won by resignation"]

1. e4 {[%clk 0:02:57.4]} 1... c5 {[%clk 0:02:58.5]} 2. g3 {[%clk 0:02:57.4]}
2... e6 {[%clk 0:02:57.6]} 3. Bg2 {[%clk 0:02:57.6]} 3... d5 {[%clk 0:02:55.9]}
4. exd5 {[%clk 0:02:57]} 4... exd5 {[%clk 0:02:56.8]} 5. d4 {[%clk 0:02:57.6]}
5... cxd4 {[%clk 0:02:53.8]} 6. Ne2 {[%clk 0:02:58]} 6... Nc6 {[%clk 0:02:30.2]}
7. O-O {[%clk 0:02:56.8]} 7... Nf6 {[%clk 0:02:30.6]} 8. Nxd4 {[%clk 0:02:56.2]}
8... Bg4 {[%clk 0:02:29.1]} 9. Qd3 {[%clk 0:02:34.9]} 9... Be7 {[%clk
0:02:26.5]} 10. h3 {[%clk 0:02:27.7]} 10... Bd7 {[%clk 0:02:25.1]} 11. Nc3
{[%clk 0:02:26.7]} 11... O-O {[%clk 0:02:24.4]} 12. Bf4 {[%clk 0:02:23.3]} 12...
Rc8 {[%clk 0:02:21.2]} 13. Nf5 {[%clk 0:02:16.7]} 13... Bxf5 {[%clk 0:02:11.8]}
14. Qxf5 {[%clk 0:02:16.4]} 14... d4 {[%clk 0:02:04.8]} 15. Nd5 {[%clk
0:02:02.4]} 15... Nxd5 {[%clk 0:02:04.2]} 16. Bxd5 {[%clk 0:02:01.8]} 16... g6
{[%clk 0:01:54.4]} 17. Qe4 {[%clk 0:01:57.9]} 17... Bf6 {[%clk 0:01:55.1]} 18.
Bb3 {[%clk 0:01:48.3]} 18... Qd7 {[%clk 0:01:53.3]} 19. Kg2 {[%clk 0:01:43.9]}
19... Na5 {[%clk 0:01:53.1]} 20. Rad1 {[%clk 0:01:40.7]} 20... Nxb3 {[%clk
0:01:52.6]} 21. cxb3 {[%clk 0:01:39.6]} 21... Rfd8 {[%clk 0:01:47.5]} 22. Rd2
{[%clk 0:01:38.5]} 22... h5 {[%clk 0:01:42.1]} 23. Rfd1 {[%clk 0:01:36.4]} 23...
Rc5 {[%clk 0:01:41]} 24. Qf3 {[%clk 0:01:23.2]} 24... Rf5 {[%clk 0:01:34.7]} 25.
h4 {[%clk 0:01:16.4]} 25... a6 {[%clk 0:01:31.4]} 26. Qe4 {[%clk 0:01:10.8]}
26... Re8 {[%clk 0:01:29.7]} 27. Qf3 {[%clk 0:01:10.4]} 27... Be5 {[%clk
0:01:26]} 28. Kg1 {[%clk 0:01:04.4]} 28... Bxf4 {[%clk 0:01:20.9]} 29. Rxd4
{[%clk 0:01:03.6]} 29... Re1+ {[%clk 0:01:03.1]} 30. Rxe1 {[%clk 0:01:03]} 30...
Qxd4 {[%clk 0:01:03.3]} 31. Re4 {[%clk 0:00:45.6]} 31... Bxg3 {[%clk 0:00:48.9]}
32. Rxd4 {[%clk 0:00:45]} 32... Rxf3 {[%clk 0:00:47.3]} 33. fxg3 {[%clk
0:00:44.7]} 33... Rxg3+ {[%clk 0:00:48.2]} 34. Kf2 {[%clk 0:00:44.3]} 34... Rg4
{[%clk 0:00:42.4]} 35. Rd7 {[%clk 0:00:43.6]} 35... Rxh4 {[%clk 0:00:41.5]} 36.
Rxb7 {[%clk 0:00:43.6]} 36... Rh2+ {[%clk 0:00:41.9]} 37. Kg3 {[%clk 0:00:38.5]}
37... Rxb2 {[%clk 0:00:42.8]} 38. a4 {[%clk 0:00:37.6]} 38... Kg7 {[%clk
0:00:41.7]} 39. a5 {[%clk 0:00:37.5]} 39... g5 {[%clk 0:00:39.9]} 40. Rb6 {[%clk
0:00:36.8]} 40... f6 {[%clk 0:00:38.4]} 41. Kf3 {[%clk 0:00:35.4]} 41... Kg6
{[%clk 0:00:37.7]} 42. Rb8 {[%clk 0:00:34]} 42... h4 {[%clk 0:00:37.2]} 43. Ke4
{[%clk 0:00:30.9]} 43... h3 {[%clk 0:00:30.6]} 44. Kd4 {[%clk 0:00:29.8]} 44...
h2 {[%clk 0:00:27]} 45. Rh8 {[%clk 0:00:29.4]} 45... Rxb3 {[%clk 0:00:25.1]} 46.
Rxh2 {[%clk 0:00:29.1]} 46... Ra3 {[%clk 0:00:25.7]} 0-1

[Event "Late-Titled-Tuesday-Blitz-April-02-2024"]
[Site "Chess.com"]
[Date "2024.04.02"]
[Round "5"]
[White "Szachulec75"]
[Black "Felix-Rose"]
[Result "1-0"]
[WhiteElo "2058"]
[BlackElo "2319"]
[TimeControl "180+1"]
[EndTime "14:53:26 PDT"]
[Termination "Szachulec75 won on time"]

1. Nf3 {[%clk 0:03:00.9]} 1... Nf6 {[%clk 0:02:58.5]} 2. g3 {[%clk 0:02:59.4]}
2... c5 {[%clk 0:02:55]} 3. Bg2 {[%clk 0:03:00.3]} 3... Nc6 {[%clk 0:02:51.7]}
4. d3 {[%clk 0:03:01.2]} 4... d5 {[%clk 0:02:40.8]} 5. O-O {[%clk 0:03:02.1]}
5... e5 {[%clk 0:02:38.8]} 6. Bg5 {[%clk 0:02:59.5]} 6... Be6 {[%clk 0:02:34.9]}
7. Nfd2 {[%clk 0:02:56.8]} 7... h6 {[%clk 0:02:32.5]} 8. Bxf6 {[%clk 0:02:56]}
8... Qxf6 {[%clk 0:02:32.8]} 9. Nc3 {[%clk 0:02:56.5]} 9... Rd8 {[%clk
0:02:16.9]} 10. e4 {[%clk 0:02:52.2]} 10... Ne7 {[%clk 0:02:07.6]} 11. exd5
{[%clk 0:02:50.2]} 11... Nxd5 {[%clk 0:02:08.5]} 12. Re1 {[%clk 0:02:31.6]}
12... Be7 {[%clk 0:01:54]} 13. Nxd5 {[%clk 0:02:18.4]} 13... Bxd5 {[%clk
0:01:53.7]} 14. Bxd5 {[%clk 0:02:15.1]} 14... Rxd5 {[%clk 0:01:53.9]} 15. Ne4
{[%clk 0:01:46.9]} 15... Qe6 {[%clk 0:01:45.9]} 16. Qf3 {[%clk 0:01:42.7]} 16...
O-O {[%clk 0:01:16.9]} 17. Re2 {[%clk 0:01:42]} 17... Rfd8 {[%clk 0:01:06.6]}
18. Rae1 {[%clk 0:01:41]} 18... Qb6 {[%clk 0:00:49.5]} 19. b3 {[%clk 0:01:36.1]}
19... Rd4 {[%clk 0:00:42]} 20. Nd2 {[%clk 0:01:27.8]} 20... Bf6 {[%clk
0:00:40.7]} 21. Nc4 {[%clk 0:01:26.6]} 21... Qa6 {[%clk 0:00:39]} 22. a4 {[%clk
0:01:24.4]} 22... b5 {[%clk 0:00:38.8]} 23. axb5 {[%clk 0:01:23.6]} 23... Qxb5
{[%clk 0:00:39.7]} 24. Nxe5 {[%clk 0:01:23.4]} 24... a5 {[%clk 0:00:31.5]} 25.
Ng4 {[%clk 0:01:20.1]} 25... Bg5 {[%clk 0:00:29.3]} 26. h4 {[%clk 0:01:17.5]}
26... Bf6 {[%clk 0:00:14.5]} 27. Nxf6+ {[%clk 0:01:16.5]} 27... gxf6 {[%clk
0:00:15.4]} 28. Qxf6 {[%clk 0:01:15.6]} 28... R4d6 {[%clk 0:00:16]} 29. Re8+
{[%clk 0:01:15.1]} 29... Rxe8 {[%clk 0:00:15.2]} 30. Rxe8+ {[%clk 0:01:13]}
30... Qxe8 {[%clk 0:00:15.8]} 31. Qxd6 {[%clk 0:01:13.4]} 31... Qe2 {[%clk
0:00:13.7]} 32. Qxc5 {[%clk 0:01:09.8]} 32... a4 {[%clk 0:00:13]} 33. bxa4
{[%clk 0:01:08.9]} 33... Kh7 {[%clk 0:00:13]} 34. d4 {[%clk 0:01:03.7]} 34...
Qe1+ {[%clk 0:00:09.4]} 35. Kg2 {[%clk 0:01:01.6]} 35... Qe4+ {[%clk 0:00:09.9]}
36. Kh2 {[%clk 0:01:02]} 36... Qf3 {[%clk 0:00:09.8]} 37. d5 {[%clk 0:01:00.8]}
37... f5 {[%clk 0:00:09.2]} 38. d6 {[%clk 0:01:00.4]} 38... f4 {[%clk
0:00:07.5]} 39. Qf5+ {[%clk 0:00:57.9]} 39... Kh8 {[%clk 0:00:07.3]} 40. Qxf4
{[%clk 0:00:58.5]} 40... Qc3 {[%clk 0:00:07.5]} 41. d7 {[%clk 0:00:56.2]} 41...
Qc7 {[%clk 0:00:07.4]} 42. Qf8+ {[%clk 0:00:55.1]} 42... Kh7 {[%clk 0:00:07.5]}
43. Qe7+ {[%clk 0:00:55.4]} 43... Kg6 {[%clk 0:00:07.5]} 44. d8=Q {[%clk
0:00:55.3]} 44... Qxc2 {[%clk 0:00:06.7]} 45. Qg8+ {[%clk 0:00:53.9]} 45... Kh5
{[%clk 0:00:07.2]} 46. Qe5+ {[%clk 0:00:51.6]} 1-0

[Event "Late-Titled-Tuesday-Blitz-April-02-2024"]
[Site "Chess.com"]
[Date "2024.04.02"]
[Round "5"]
[White "jinxy2009"]
[Black "maurovargas01"]
[Result "1-0"]
[WhiteElo "2298"]
[BlackElo "1876"]
[TimeControl "180+1"]
[EndTime "14:53:27 PDT"]
[Termination "jinxy2009 won by checkmate"]

1. e4 {[%clk 0:02:34.3]} 1... c6 {[%clk 0:02:59.9]} 2. d4 {[%clk 0:02:34]} 2...
d5 {[%clk 0:03:00.8]} 3. e5 {[%clk 0:02:34.7]} 3... Bf5 {[%clk 0:03:00.6]} 4.
Nd2 {[%clk 0:02:35.2]} 4... e6 {[%clk 0:03:00.8]} 5. Nb3 {[%clk 0:02:35.3]} 5...
Nd7 {[%clk 0:02:57.9]} 6. Nf3 {[%clk 0:02:35]} 6... b6 {[%clk 0:02:57.7]} 7. Be2
{[%clk 0:02:34.9]} 7... c5 {[%clk 0:02:57.2]} 8. O-O {[%clk 0:02:21.5]} 8... c4
{[%clk 0:02:53.6]} 9. Nbd2 {[%clk 0:02:20.8]} 9... b5 {[%clk 0:02:51.7]} 10. c3
{[%clk 0:01:59.5]} 10... Ne7 {[%clk 0:02:45.9]} 11. b3 {[%clk 0:01:44.1]} 11...
Nc6 {[%clk 0:02:37]} 12. a4 {[%clk 0:01:37.9]} 12... a6 {[%clk 0:02:34]} 13. Ne1
{[%clk 0:01:16.6]} 13... Be7 {[%clk 0:02:33.2]} 14. f4 {[%clk 0:01:09.1]} 14...
O-O {[%clk 0:02:28.8]} 15. g4 {[%clk 0:01:03.1]} 15... Be4 {[%clk 0:02:12.2]}
16. Nxe4 {[%clk 0:00:58.6]} 16... dxe4 {[%clk 0:02:12]} 17. bxc4 {[%clk
0:00:55.2]} 17... bxa4 {[%clk 0:02:01.4]} 18. Be3 {[%clk 0:00:44.9]} 18... f5
{[%clk 0:01:58.9]} 19. d5 {[%clk 0:00:35]} 19... exd5 {[%clk 0:01:51.3]} 20.
cxd5 {[%clk 0:00:34.3]} 20... Na5 {[%clk 0:01:32]} 21. d6 {[%clk 0:00:26]} 21...
Bh4 {[%clk 0:01:29.5]} 22. gxf5 {[%clk 0:00:19.9]} 22... Nb3 {[%clk 0:01:23.4]}
23. Rxa4 {[%clk 0:00:17.9]} 23... Nbc5 {[%clk 0:01:21.3]} 24. Bxc5 {[%clk
0:00:13.9]} 24... Nxc5 {[%clk 0:01:21.2]} 25. Qd5+ {[%clk 0:00:14.2]} 25... Kh8
{[%clk 0:01:16.3]} 26. Qxc5 {[%clk 0:00:14.1]} 26... Rxf5 {[%clk 0:01:09.9]} 27.
Ng2 {[%clk 0:00:13.2]} 27... Rc8 {[%clk 0:01:02.6]} 28. Qe3 {[%clk 0:00:12.2]}
28... h6 {[%clk 0:01:01.7]} 29. Bg4 {[%clk 0:00:09.6]} 29... Qd7 {[%clk
0:00:53.5]} 30. Bxf5 {[%clk 0:00:09.3]} 30... Qxf5 {[%clk 0:00:50.9]} 31. Nxh4
{[%clk 0:00:09.4]} 31... Qg4+ {[%clk 0:00:50.6]} 32. Ng2 {[%clk 0:00:09.4]}
32... Rb8 {[%clk 0:00:43]} 33. Rxe4 {[%clk 0:00:08.8]} 33... Rb2 {[%clk
0:00:41.3]} 34. Qg3 {[%clk 0:00:08.6]} 34... Qf5 {[%clk 0:00:37.2]} 35. Ree1
{[%clk 0:00:08.5]} 35... Qc2 {[%clk 0:00:36.3]} 36. e6 {[%clk 0:00:07.8]} 36...
a5 {[%clk 0:00:28.8]} 37. e7 {[%clk 0:00:07.6]} 37... Qb3 {[%clk 0:00:17.8]} 38.
e8=Q+ {[%clk 0:00:08]} 38... Kh7 {[%clk 0:00:16.7]} 39. Qgg6# {[%clk 0:00:07.7]}
1-0

[Event "Late-Titled-Tuesday-Blitz-April-02-2024"]
[Site "Chess.com"]
[Date "2024.04.02"]
[Round "5"]
[White "Bykov_Egor"]
[Black "cthulhuuu"]
[Result "0-1"]
[WhiteElo "2603"]
[BlackElo "2466"]
[TimeControl "180+1"]
[EndTime "14:53:33 PDT"]
[Termination "cthulhuuu won by checkmate"]

1. e4 {[%clk 0:03:00.9]} 1... d6 {[%clk 0:02:57.9]} 2. d4 {[%clk 0:02:58.2]}
2... Nf6 {[%clk 0:02:58.5]} 3. Nc3 {[%clk 0:02:57.4]} 3... c6 {[%clk 0:02:58.6]}
4. Nf3 {[%clk 0:02:54.4]} 4... Bg4 {[%clk 0:02:58.3]} 5. Be2 {[%clk 0:02:53.6]}
5... e6 {[%clk 0:02:58.4]} 6. h3 {[%clk 0:02:47.4]} 6... Bh5 {[%clk 0:02:58.7]}
7. Bg5 {[%clk 0:02:36.4]} 7... Be7 {[%clk 0:02:58.6]} 8. Qd2 {[%clk 0:02:32.9]}
8... d5 {[%clk 0:02:55.2]} 9. exd5 {[%clk 0:02:18.5]} 9... cxd5 {[%clk 0:02:54]}
10. Ne5 {[%clk 0:02:09.1]} 10... Bxe2 {[%clk 0:02:50.3]} 11. Qxe2 {[%clk
0:02:07.7]} 11... Nc6 {[%clk 0:02:49.6]} 12. Nxc6 {[%clk 0:01:51.1]} 12... bxc6
{[%clk 0:02:49.4]} 13. O-O {[%clk 0:01:51.8]} 13... O-O {[%clk 0:02:49.3]} 14.
Na4 {[%clk 0:01:49]} 14... Ne4 {[%clk 0:02:30.2]} 15. Bxe7 {[%clk 0:01:48.8]}
15... Qxe7 {[%clk 0:02:31.1]} 16. Rfd1 {[%clk 0:01:30.1]} 16... Rab8 {[%clk
0:02:26.3]} 17. b3 {[%clk 0:01:26.3]} 17... Qf6 {[%clk 0:02:15.9]} 18. f3 {[%clk
0:01:14.7]} 18... Ng3 {[%clk 0:02:11.5]} 19. Qd3 {[%clk 0:01:07.7]} 19... Rb5
{[%clk 0:00:53.1]} 20. Rd2 {[%clk 0:00:45.7]} 20... Nf5 {[%clk 0:00:45.5]} 21.
Re1 {[%clk 0:00:38]} 21... Qh4 {[%clk 0:00:43]} 22. Rc1 {[%clk 0:00:35.6]} 22...
Qg5 {[%clk 0:00:41.2]} 23. Nc5 {[%clk 0:00:31]} 23... Nxd4 {[%clk 0:00:31.5]}
24. Qxd4 {[%clk 0:00:31.3]} 24... Rxc5 {[%clk 0:00:31.6]} 25. f4 {[%clk
0:00:32]} 25... Qe7 {[%clk 0:00:28.3]} 26. Qb4 {[%clk 0:00:26.7]} 26... Re8
{[%clk 0:00:26.2]} 27. c4 {[%clk 0:00:24.3]} 27... a5 {[%clk 0:00:11.7]} 28. Qa3
{[%clk 0:00:23.9]} 28... Rxc4 {[%clk 0:00:06.6]} 29. Qb2 {[%clk 0:00:15.9]}
29... Qc5+ {[%clk 0:00:06.9]} 30. Kh2 {[%clk 0:00:11.7]} 30... Rxc1 {[%clk
0:00:07.2]} 31. a3 {[%clk 0:00:11.1]} 31... Qg1+ {[%clk 0:00:07.3]} 32. Kg3
{[%clk 0:00:11.8]} 32... Qe3+ {[%clk 0:00:07.6]} 33. Kg4 {[%clk 0:00:09.3]}
33... f5+ {[%clk 0:00:08]} 34. Kg5 {[%clk 0:00:08.7]} 34... Qg3+ {[%clk
0:00:08.3]} 35. Kh5 {[%clk 0:00:08.8]} 35... g6+ {[%clk 0:00:07.4]} 36. Kh6
{[%clk 0:00:09.3]} 36... Qxf4# {[%clk 0:00:07.7]} 0-1

[Event "Late-Titled-Tuesday-Blitz-April-02-2024"]
[Site "Chess.com"]
[Date "2024.04.02"]
[Round "5"]
[White "slidingknight2775"]
[Black "Laico"]
[Result "1-0"]
[WhiteElo "2594"]
[BlackElo "2398"]
[TimeControl "180+1"]
[EndTime "14:53:33 PDT"]
[Termination "slidingknight2775 won on time"]

1. e4 {[%clk 0:03:00.9]} 1... e6 {[%clk 0:02:52.7]} 2. c4 {[%clk 0:02:50.4]}
2... d5 {[%clk 0:02:52.2]} 3. exd5 {[%clk 0:02:47.2]} 3... exd5 {[%clk
0:02:53.1]} 4. d4 {[%clk 0:02:47.8]} 4... Nf6 {[%clk 0:02:52.9]} 5. Nc3 {[%clk
0:02:48.3]} 5... Bb4 {[%clk 0:02:52.9]} 6. Nf3 {[%clk 0:02:46.8]} 6... O-O
{[%clk 0:02:53]} 7. h3 {[%clk 0:02:46.9]} 7... Re8+ {[%clk 0:02:52]} 8. Be3
{[%clk 0:02:46.9]} 8... dxc4 {[%clk 0:02:49.3]} 9. Bxc4 {[%clk 0:02:47.8]} 9...
Nd5 {[%clk 0:02:49.3]} 10. Qb3 {[%clk 0:02:36.9]} 10... Bxc3+ {[%clk 0:02:35.7]}
11. bxc3 {[%clk 0:02:37.8]} 11... c6 {[%clk 0:02:26.8]} 12. O-O {[%clk
0:02:36.7]} 12... b5 {[%clk 0:01:49.1]} 13. Bd3 {[%clk 0:02:15.1]} 13... Nxe3
{[%clk 0:01:34.3]} 14. fxe3 {[%clk 0:02:16]} 14... Rxe3 {[%clk 0:01:34.3]} 15.
Ng5 {[%clk 0:01:31.3]} 15... Be6 {[%clk 0:01:32.6]} 16. Bxh7+ {[%clk 0:01:25.5]}
16... Kh8 {[%clk 0:01:26.8]} 17. Nxe6 {[%clk 0:01:15]} 17... Rxe6 {[%clk
0:01:17.6]} 18. Rxf7 {[%clk 0:01:11.8]} 18... Qe8 {[%clk 0:01:07.7]} 19. Bf5
{[%clk 0:00:47.5]} 19... Qxf7 {[%clk 0:00:38.3]} 20. Bxe6 {[%clk 0:00:46.4]}
20... Qe7 {[%clk 0:00:37.4]} 21. Rf1 {[%clk 0:00:46]} 21... Na6 {[%clk
0:00:36.5]} 22. Bg4 {[%clk 0:00:30.3]} 22... Rf8 {[%clk 0:00:27.3]} 23. Rxf8+
{[%clk 0:00:28.2]} 23... Qxf8 {[%clk 0:00:28.2]} 24. Qe6 {[%clk 0:00:28]} 24...
Qf4 {[%clk 0:00:14]} 25. Qc8+ {[%clk 0:00:17]} 25... Kh7 {[%clk 0:00:11.1]} 26.
Qxa6 {[%clk 0:00:13]} 26... Qc1+ {[%clk 0:00:08.3]} 27. Kf2 {[%clk 0:00:13.4]}
27... Qf4+ {[%clk 0:00:06.6]} 28. Bf3 {[%clk 0:00:13.5]} 28... Qd2+ {[%clk
0:00:06.2]} 29. Kg3 {[%clk 0:00:11.3]} 29... Qg5+ {[%clk 0:00:02.6]} 30. Kf2
{[%clk 0:00:08.7]} 30... Qd2+ {[%clk 0:00:02.5]} 31. Be2 {[%clk 0:00:07.5]}
31... Qf4+ {[%clk 0:00:02.4]} 32. Ke1 {[%clk 0:00:07.4]} 32... Qc1+ {[%clk
0:00:02.6]} 33. Bd1 {[%clk 0:00:08.1]} 33... Qe3+ {[%clk 0:00:02.8]} 34. Kf1
{[%clk 0:00:08.8]} 34... Qd3+ {[%clk 0:00:01.4]} 35. Be2 {[%clk 0:00:08.4]}
35... Qf5+ {[%clk 0:00:01.4]} 36. Ke1 {[%clk 0:00:08.6]} 36... Qb1+ {[%clk
0:00:01.4]} 37. Kf2 {[%clk 0:00:08.6]} 37... Qf5+ {[%clk 0:00:01.3]} 38. Ke3
{[%clk 0:00:09.2]} 1-0

[Event "Late-Titled-Tuesday-Blitz-April-02-2024"]
[Site "Chess.com"]
[Date "2024.04.02"]
[Round "5"]
[White "chess_sharparchitect"]
[Black "ChessBrainiacOnTwitch"]
[Result "0-1"]
[WhiteElo "2281"]
[BlackElo "2816"]
[TimeControl "180+1"]
[EndTime "14:53:34 PDT"]
[Termination "ChessBrainiacOnTwitch won on time"]

1. c4 {[%clk 0:03:00.9]} 1... e5 {[%clk 0:02:52.4]} 2. Nc3 {[%clk 0:03:01]} 2...
Nf6 {[%clk 0:02:50.1]} 3. Nf3 {[%clk 0:02:57.1]} 3... Nc6 {[%clk 0:02:42.7]} 4.
g3 {[%clk 0:02:57.3]} 4... Bb4 {[%clk 0:02:41.9]} 5. Nd5 {[%clk 0:02:56.8]} 5...
a5 {[%clk 0:02:41.6]} 6. Bg2 {[%clk 0:02:54.1]} 6... O-O {[%clk 0:02:42]} 7. O-O
{[%clk 0:02:48.6]} 7... Re8 {[%clk 0:02:41.9]} 8. a3 {[%clk 0:02:46.2]} 8... Bf8
{[%clk 0:02:41.4]} 9. d4 {[%clk 0:02:27.2]} 9... exd4 {[%clk 0:02:16.6]} 10.
Nxd4 {[%clk 0:02:28.1]} 10... Ne5 {[%clk 0:02:15.6]} 11. Bg5 {[%clk 0:01:51.6]}
11... Be7 {[%clk 0:01:49.9]} 12. Nf5 {[%clk 0:01:45.4]} 12... Nxd5 {[%clk
0:01:46.7]} 13. Bxd5 {[%clk 0:01:31.5]} 13... Bxg5 {[%clk 0:01:43]} 14. f4
{[%clk 0:01:30.9]} 14... d6 {[%clk 0:01:06.8]} 15. fxg5 {[%clk 0:01:23.7]} 15...
Qxg5 {[%clk 0:01:07.7]} 16. e4 {[%clk 0:01:12.2]} 16... Bxf5 {[%clk 0:01:02.6]}
17. Rxf5 {[%clk 0:01:05.9]} 17... Qe3+ {[%clk 0:01:02.8]} 18. Kg2 {[%clk
0:01:01.9]} 18... c6 {[%clk 0:01:03.7]} 19. Bxf7+ {[%clk 0:00:29.7]} 19... Nxf7
{[%clk 0:01:02.7]} 20. Rf4 {[%clk 0:00:27.8]} 20... Rxe4 {[%clk 0:01:01.5]} 21.
Qg4 {[%clk 0:00:23.5]} 21... Rxf4 {[%clk 0:01:00.3]} 22. gxf4 {[%clk 0:00:23.9]}
22... Qe4+ {[%clk 0:01:00.3]} 23. Kh3 {[%clk 0:00:21]} 23... Rf8 {[%clk
0:00:59]} 24. Rg1 {[%clk 0:00:20.6]} 24... g6 {[%clk 0:00:59.2]} 25. b4 {[%clk
0:00:18]} 25... axb4 {[%clk 0:00:57.8]} 26. axb4 {[%clk 0:00:18.1]} 26... Nh6
{[%clk 0:00:58.4]} 27. Qd7 {[%clk 0:00:16.6]} 27... Qf5+ {[%clk 0:00:56.6]} 28.
Qxf5 {[%clk 0:00:15.7]} 28... Nxf5 {[%clk 0:00:57.5]} 29. Ra1 {[%clk 0:00:14.8]}
29... Rf7 {[%clk 0:00:56.2]} 30. Ra7 {[%clk 0:00:14.8]} 30... Re7 {[%clk
0:00:56.5]} 31. Kg4 {[%clk 0:00:12.9]} 31... Kf7 {[%clk 0:00:56.1]} 32. b5
{[%clk 0:00:12.9]} 32... cxb5 {[%clk 0:00:56]} 33. cxb5 {[%clk 0:00:12.9]} 33...
d5 {[%clk 0:00:56.5]} 34. Ra8 {[%clk 0:00:12.8]} 34... d4 {[%clk 0:00:56.8]} 35.
Rd8 {[%clk 0:00:12.9]} 35... Ke6 {[%clk 0:00:56.6]} 36. h4 {[%clk 0:00:12.7]}
36... Rd7 {[%clk 0:00:56.5]} 37. Re8+ {[%clk 0:00:11.7]} 37... Kf7 {[%clk
0:00:56.5]} 38. Rh8 {[%clk 0:00:10.9]} 38... h5+ {[%clk 0:00:56.4]} 39. Kg5
{[%clk 0:00:10.1]} 39... Kg7 {[%clk 0:00:57]} 40. Rb8 {[%clk 0:00:05.3]} 40...
d3 {[%clk 0:00:53]} 41. b6 {[%clk 0:00:05.7]} 41... d2 {[%clk 0:00:44.6]} 42.
Rxb7 {[%clk 0:00:05.9]} 42... Rf7 {[%clk 0:00:24.3]} 43. Re7 {[%clk 0:00:01.1]}
43... Nxe7 {[%clk 0:00:21.2]} 0-1